fUST/lending_fUST_20241119
["ID","MTS","AMOUNT","RATE_DAILY","PERIOD"]
[342635558,1732012307293,-300.0,0.00025,2]
[342635559,1732012307303,-2061.56999308,0.00025,2]
[342635560,1732012307312,-3705.40652948,0.00025,2]
[342635561,1732012307322,-1041.22723327,0.00025,2]
[342635562,1732012307331,-5086.57670129,0.00025,2]
[342635563,1732012307341,-583222.66423412,0.00025,2]
[342635564,1732012307350,-43431.29838678,0.00025,2]
[342635565,1732012307361,-113691.96607864,0.00025,2]
[342635566,1732012307370,-165.60697728,0.00025,2]
[342635567,1732012307380,-10364.0,0.00025,2]
[342635568,1732012307390,-510.26610723,0.00025,2]
[342635569,1732012307400,-203.5678338,0.00025,2]
[342635570,1732012307409,-347.05934983,0.00025,2]
[342635571,1732012307419,-828.66731377,0.00025,2]
[342635572,1732012307430,-2552.02403496,0.00025,7]
[342635573,1732012307440,-340169.30866957,0.00025,7]
[342635574,1732012307451,-2977.04,0.00025,2]
[342635575,1732012307461,-302.84859387,0.00025,2]
[342635576,1732012307471,-151.0,0.00025,5]
[342635577,1732012307483,-151.0,0.00025,5]
[342635578,1732012307493,-302.84859387,0.00025,2]
[342635579,1732012307503,-209.10947791,0.00025006,2]
[342635580,1732012307513,-316942.52217182,0.0002509,2]
[342635581,1732012307524,-300.0,0.000251,2]
[342635582,1732012307533,-300.0,0.000251,2]
[342635583,1732012307543,-300.0,0.000251,2]
[342635584,1732012307553,-5000.0,0.00025117,4]
[342635585,1732012307563,-5000.0,0.00025126,2]
[342635586,1732012307573,-261.87,0.00025205,3]
[342635587,1732012307583,-1000.0,0.00025221,2]
[342635588,1732012307593,-302.84859387,0.0002525,2]
[342635589,1732012307604,-302.84859387,0.0002525,2]
[342635590,1732012307614,-312.4070023,0.000253,10]
[342635591,1732012307623,-600.0,0.00025312,7]
[342635592,1732012307633,-462.0,0.00025373,2]
[342635593,1732012307643,-202.0,0.00025373,2]
[342635594,1732012307652,-7238.0393757,0.00025403,4]
[342635595,1732012307662,-5000.0,0.00025403,6]
[342635596,1732012307672,-5000.0,0.00025403,2]
[342635597,1732012307682,-160.0,0.00025468,2]
[342635598,1732012307694,-261.87445111,0.00025479,3]
[342635599,1732012307706,-302.84859387,0.000255,2]
[342635600,1732012307717,-302.84859387,0.000255,2]
[342635601,1732012307727,-302.84859387,0.0002575,2]
[342635602,1732012307739,-302.84859387,0.0002575,2]
[342635603,1732012307750,-2500.0,0.00025784,2]
[342635604,1732012307760,-500.0,0.00025921,28]
[342635605,1732012307770,-500.0,0.0002593,28]
[342635606,1732012307781,-500.0,0.00025938,28]
[342635607,1732012307791,-500.0,0.00025947,28]
[342635608,1732012307801,-500.0,0.00025956,28]
[342635609,1732012307810,-500.0,0.00025965,28]
[342635610,1732012307820,-500.0,0.00025974,28]
[342635611,1732012307829,-500.0,0.00025982,28]
[342635612,1732012307839,-500.0,0.00025991,28]
[342635613,1732012307849,-4911.75380568,0.00026,4]
[342635614,1732012307858,-160.33,0.00026,2]
[342635615,1732012307868,-1601.15255797,0.00026,7]
[342635616,1732012307878,-500.0,0.00026,28]
[342635617,1732012307888,-302.84859387,0.00026,2]
[342635618,1732012307898,-302.84859387,0.00026,2]
[342635619,1732012307908,-19095.88932368,0.00026,7]
[342635620,1732012307918,-151.0,0.00026,2]
[342635621,1732012307928,-500.0,0.00026027,4]
[342635622,1732012307937,-321.65044257,0.000261,120]
[342635623,1732012307947,-300.0,0.000261,2]
[342635624,1732012307961,-300.0,0.000261,2]
[342635625,1732012307971,-300.0,0.000261,2]
[342635626,1732012307982,-600.0,0.00026134,7]
[342635627,1732012307992,-1333.0,0.00026137,120]
[342635628,1732012308006,-151.65944,0.000262,2]
[342635629,1732012308016,-8643.59,0.000262,14]
[342635630,1732012308027,-1500.0,0.00026222,2]
[342635631,1732012308036,-454.27289081,0.0002625,4]
[342635632,1732012308046,-460.52270181,0.0002625,4]
[342635633,1732012308182,-3857.91,0.000263,14]
[342635634,1732012308208,-2501.95190829,0.00026356,2]
[342635635,1732012308218,-660.0,0.00026384,2]
[342635636,1732012308229,-454.27289081,0.000265,4]
[342635637,1732012308239,-454.27289081,0.0002675,4]
[342635638,1732012308249,-2258.0,0.00026799,2]
[342635639,1732012308260,-400.0,0.00026921,2]
[342635640,1732012308270,-600.0,0.00026956,7]
[342635641,1732012308279,-2799.0,0.00027,120]
[342635642,1732012308289,-200.0,0.00027,120]
[342635643,1732012308300,-174.08390073,0.00027,60]
[342635644,1732012308310,-371.0,0.00027,120]
[342635645,1732012308319,-5791.11394046,0.00027,7]
[342635646,1732012308330,-454.27289081,0.00027,4]
[342635647,1732012308343,-457.0,0.00027064,2]
[342635648,1732012308353,-300.0,0.000271,2]
[342635649,1732012308363,-300.0,0.000271,2]
[342635650,1732012308373,-300.0,0.000271,2]
[342635651,1732012308383,-160.0,0.00027166,2]
[342635652,1732012308393,-454.65126267,0.0002725,4]
[342635653,1732012308403,-500.0,0.00027397,5]
[342635654,1732012308413,-500.0,0.00027397,2]
[342635655,1732012308423,-150.12,0.00027397,2]
[342635656,1732012308433,-552.0,0.00027397,2]
[342635657,1732012308442,-200.0,0.000275,120]
[342635658,1732012308453,-8643.59,0.000275,14]
[342635659,1732012308463,-1016.27205118,0.0002752,5]
[342635660,1732012308472,-3000.0,0.00027526,5]
[342635661,1732012308484,-159.72497586,0.00027616,2]
[342635662,1732012308494,-500.0,0.00027671,2]
[342635663,1732012308504,-552.0,0.00027671,2]
[342635664,1732012308514,-3857.91,0.000277,30]
[342635665,1732012308526,-600.0,0.00027778,7]
[342635666,1732012308535,-500.0,0.00027945,2]
[342635667,1732012308545,-552.0,0.00027945,2]
[342635668,1732012308555,-2086.0,0.00028,7]
[342635669,1732012308565,-200.0,0.00028,120]
[342635670,1732012308574,-300.0,0.000281,2]
[342635671,1732012308584,-300.0,0.000281,2]
[342635672,1732012308594,-300.0,0.000281,2]
[342635673,1732012308604,-500.0,0.00028219,2]
[342635674,1732012308613,-552.0,0.00028219,2]
[342635675,1732012308623,-166.482394,0.0002831,2]
[342635676,1732012308632,-849.88,0.00028493,2]
[342635677,1732012308642,-552.0,0.00028493,2]
[342635678,1732012308652,-260.19084,0.000285,120]
[342635679,1732012308661,-600.0,0.000286,7]
[342635680,1732012308671,-213.276,0.000286,60]
[342635681,1732012308680,-12287.83270129,0.00028731,2]
[342635682,1732012308689,-457.0,0.00028756,2]
[342635683,1732012308699,-552.0,0.00028767,2]
[342635684,1732012308711,-500.0,0.00028767,6]
[342635685,1732012308721,-160.0,0.00028863,2]
[342635686,1732012308731,-201097.17691787,0.00028888,120]
[342635687,1732012308740,-30000.0,0.000289,10]
[342635688,1732012308750,-457.0,0.00028997,2]
[342635689,1732012308759,-1893.47579252,0.00029,2]
[342635690,1732012308769,-860.99113255,0.00029,2]
[342635691,1732012308779,-305888.5407252,0.00029,120]
[342635692,1732012308790,-2934.64656095,0.00029,7]
[342635693,1732012308799,-35549.77264903,0.00029,120]
[342635694,1732012308809,-1000.0,0.00029,120]
[342635695,1732012308819,-702.34895702,0.00029,30]
[342635696,1732012308829,-5773.49,0.00029,20]
[342635697,1732012308839,-676.0,0.00029,2]
[342635698,1732012308848,-319.06,0.00029,2]
[342635699,1732012308859,-552.0,0.00029041,2]
[342635700,1732012308868,-163.28632119,0.00029096,7]
[342635701,1732012308878,-300.0,0.000291,2]
[342635702,1732012308887,-300.0,0.000291,2]
[342635703,1732012308897,-300.0,0.000291,2]
[342635704,1732012308907,-8643.59,0.000291,14]
[342635705,1732012308917,-213.194,0.000291,120]
[342635706,1732012308926,-160.0,0.00029106,2]
[342635707,1732012308937,-717322.54031494,0.00029141,10]
[342635708,1732012308947,-380.33813555,0.00029141,2]
[342635709,1732012308958,-6227.24069461,0.00029141,7]
[342635710,1732012308968,-87534.73562674,0.00029141,7]
[342635711,1732012308977,-2978.74006936,0.00029141,7]
[342635712,1732012308988,-244974.43203425,0.00029141,10]
[342635713,1732012308997,-1146.93514528,0.00029141,15]
[342635714,1732012309007,-1193.20234818,0.00029141,2]
[342635715,1732012309017,-164.30709013,0.00029141,2]
[342635716,1732012309027,-231.42311995,0.00029141,2]
[342635717,1732012309037,-186.84778322,0.00029141,2]
[342635718,1732012309047,-287.0,0.00029141,5]
[342635719,1732012309058,-201.12874944,0.00029141,10]
[342635720,1732012309069,-223.49741841,0.00029141,2]
[342635721,1732012309079,-498.0,0.00029141,7]
[342635722,1732012309089,-6573592.88901985,0.00029141,10]
[342635723,1732012309100,-89872.34922,0.00029141,2]
[342635724,1732012309110,-50998.36403648,0.00029141,2]
[342635725,1732012309120,-10158.87668464,0.00029141,2]
[342635726,1732012309130,-136261.94358177,0.00029141,2]
[342635727,1732012309140,-299.0,0.00029141,2]
[342635728,1732012309150,-10023954.66733822,0.00029141,10]
[342635729,1732012309160,-7537212.48012662,0.00029141,10]
[342635730,1732012309170,-7858794.23916128,0.00029141,10]
[342635731,1732012309181,-3043.27353812,0.00029141,2]
[342635732,1732012309191,-2000.0,0.00029141,2]
[342635733,1732012309201,-300.0,0.00029141,2]
[342635734,1732012309212,-798.74564154,0.00029141,2]
[342635735,1732012309222,-517.58964043,0.00029141,2]
[342635736,1732012309233,-292.91825718,0.00029141,2]
[342635737,1732012309243,-322.56698929,0.00029141,2]
[342635738,1732012309253,-188.17223709,0.00029141,12]
[342635739,1732012309263,-4148.5988777,0.00029141,2]
[342635740,1732012309273,-6205.52169069,0.00029141,2]
[342635741,1732012309284,-155.33399673,0.00029141,2]
[342635742,1732012309294,-440.03305745,0.00029141,2]
[342635743,1732012309304,-1025.2629782,0.00029141,2]
[342635744,1732012309314,-18509.21159115,0.00029141,2]
[342635745,1732012309324,-18436.40632697,0.00029141,2]
[342635746,1732012309333,-910.87775617,0.00029141,2]
[342635747,1732012309343,-461.61403494,0.00029141,2]
[342635748,1732012309353,-5178721.144474,0.00029141,10]
[342635749,1732012310159,-153.0,0.00017621,2]
[342635750,1732012310169,-153.0,0.00017621,2]
[342635751,1732012310178,-153.0,0.00017621,2]
[342635752,1732012310187,-153.0,0.00017621,2]
[342635753,1732012310197,-1257.715178,0.000199,2]
[342635754,1732012310207,-1000.0,0.000204,2]
[342635755,1732012310217,-500.0,0.00021973,2]
[342635756,1732012310226,-2862.28482198,0.00021978,2]
[342635763,1732013239123,-241.12230137,0.00013973,2]
[342635772,1732013369104,-158.87769863,0.00013973,2]
[342635775,1732013378586,166.40307955,0.00013973,2]
[342635828,1732013432590,-233.59692045,0.00013973,2]
[342635830,1732013432600,-283.844919,0.00017,2]
[342635832,1732013432611,-151.0,0.00017808,2]
[342635835,1732013432621,-151.0,0.00017808,2]
[342635837,1732013432630,-150.0,0.00017974,2]
[342635839,1732013432640,-7015.625,0.00018,2]
[342635841,1732013432649,-239.0,0.00018019,2]
[342635843,1732013432659,-300.0,0.0001802,2]
[342635845,1732013432668,-4872.5807113,0.00018021,2]
[342635847,1732013432678,-151.0,0.00018619,2]
[342635849,1732013432689,-151.0,0.00018619,2]
[342635851,1732013432698,-283.844919,0.00018619,2]
[342635852,1732013432707,-159.133825,0.00019178,2]
[342635855,1732013432717,-420.0,0.00019662,2]
[342635857,1732013432727,-151.0,0.0001999,2]
[342635859,1732013432736,-151.0,0.0001999,2]
[342635860,1732013432745,-283.844919,0.0001999,2]
[342635863,1732013432756,-283.844919,0.0001999,2]
[342635865,1732013432765,-151.0,0.00020377,2]
[342635866,1732013432775,-151.0,0.00020377,2]
[342635869,1732013432784,-283.844919,0.00020377,2]
[342635870,1732013432793,-283.844919,0.00020377,2]
[342635873,1732013432803,-400.0,0.00020447,2]
[342635875,1732013432821,-587.0,0.00021452,2]
[342635878,1732013432832,-151.0,0.0002187,2]
[342635880,1732013432843,-184.004468,0.0002187,2]
[342635882,1732013432853,-283.844919,0.0002187,2]
[342635884,1732013432865,-283.844919,0.0002187,2]
[342635886,1732013432875,-500.0,0.00021881,2]
[342635888,1732013432884,-151.0,0.00021917,2]
[342635890,1732013432894,-151.0,0.00021917,2]
[342635892,1732013432904,-151.0,0.00021917,2]
[342635894,1732013432913,-151.0,0.00021917,2]
[342635896,1732013432923,-151.0,0.00021917,2]
[342635898,1732013432935,-283.844919,0.00021917,2]
[342635900,1732013432946,-283.844919,0.00021917,2]
[342635902,1732013432955,-283.844919,0.00021917,2]
[342635904,1732013432965,-283.844919,0.00021917,2]
[342635906,1732013432975,-283.844919,0.00021917,2]
[342635908,1732013432984,-283.844919,0.00021917,2]
[342635910,1732013432994,-283.844919,0.00021917,2]
[342635912,1732013433005,-283.844919,0.00021917,2]
[342635914,1732013433015,-283.844919,0.00021917,2]
[342635916,1732013433025,-283.8449233,0.00021917,2]
[342635918,1732013433034,-500.0,0.00022,8]
[342635921,1732013433045,-230.13257172,0.0002274,2]
[342635923,1732013433054,-467.93835078,0.00022783,2]
[342635925,1732013433064,-200.0,0.00023,2]
[342635927,1732013433077,-6322.05,0.00023099,2]
[342635929,1732013433087,-500.0,0.00023099,2]
[342635931,1732013433097,-151.0,0.00023099,2]
[342635933,1732013433108,-500.0,0.00023287,2]
[342635935,1732013433119,-823.0,0.00023407,2]
[342635937,1732013433130,-230.13257172,0.00023664,2]
[342635938,1732013433141,-171.9610801,0.00023836,2]
[342635940,1732013433151,-165.021,0.00023932,5]
[342635942,1732013433163,-500.0,0.00024216,2]
[342635944,1732013433174,-230.13257172,0.00024588,2]
[342635946,1732013433185,-623.22720772,0.00024656,2]
[342635948,1732013433196,-500.0,0.00024656,2]
[342635950,1732013433206,-232.50819364,0.00024656,2]
[342635952,1732013433217,-500.0,0.00024656,2]
[342635954,1732013433228,-500.0,0.00024656,2]
[342635956,1732013433238,-500.0,0.00024656,2]
[342635958,1732013433248,-200.0,0.00024656,2]
[342635960,1732013433259,-561.65440913,0.00024656,2]
[342635962,1732013433269,-500.0,0.00024656,2]
[342635964,1732013433279,-331.82404491,0.00024656,2]
[342635966,1732013433290,-500.0,0.00024656,2]
[342635968,1732013433300,-500.0,0.00024656,2]
[342635970,1732013433311,-500.0,0.00024656,2]
[342635972,1732013433322,-500.0,0.00024656,2]
[342635974,1732013433332,-500.0,0.00024656,2]
[342635976,1732013433342,-500.0,0.00024656,2]
[342635978,1732013433352,-585.69774985,0.00024656,2]
[342635980,1732013433363,-500.0,0.00024656,2]
[342635982,1732013433373,-539.94505713,0.00024656,2]
[342635984,1732013433382,-500.0,0.00024656,2]
[342635986,1732013433392,-500.0,0.00024657,7]
[342635988,1732013433402,-502.75542219,0.00024657,7]
[342635990,1732013433412,-529.91163196,0.00024657,7]
[342635992,1732013433422,-500.0,0.00024657,7]
[342635994,1732013433431,-500.0,0.00024657,7]
[342635996,1732013433443,-500.0,0.00024657,3]
[342635998,1732013433452,-500.0,0.00024657,7]
[342635999,1732013433462,-500.0,0.00024657,7]
[342636000,1732013433472,-500.0,0.00024657,7]
[342636001,1732013433482,-500.0,0.00024657,7]
[342636002,1732013433677,-500.0,0.00024657,7]
[342636003,1732013433688,-500.0,0.00024657,7]
[342636004,1732013433698,-500.0,0.00024657,7]
[342636005,1732013433708,-500.0,0.00024657,7]
[342636006,1732013433718,-500.0,0.00024657,7]
[342636007,1732013433727,-505.62913142,0.00024657,7]
[342636008,1732013433737,-291.18616365,0.00024657,7]
[342636009,1732013433747,-500.0,0.00024657,7]
[342636010,1732013433756,-500.0,0.00024657,7]
[342636011,1732013433766,-501.16572674,0.00024657,7]
[342636012,1732013433775,-500.0,0.00024657,7]
[342636013,1732013433784,-500.0,0.00024657,7]
[342636014,1732013433793,-539.13002868,0.00024657,7]
[342636015,1732013433803,-506.96,0.00024657,7]
[342636016,1732013433812,-506.96,0.00024657,7]
[342636017,1732013433822,-506.96,0.00024657,7]
[342636018,1732013433831,-506.96,0.00024657,7]
[342636019,1732013433840,-506.96,0.00024657,7]
[342636020,1732013433850,-506.96,0.00024657,7]
[342636021,1732013433863,-462.5724372,0.00024657,7]
[342636022,1732013433872,-664.09,0.00024657,7]
[342636023,1732013433881,-664.09,0.00024657,7]
[342636024,1732013433891,-664.09,0.00024657,7]
[342636025,1732013433901,-664.09,0.00024657,7]
[342636026,1732013433910,-664.09,0.00024657,7]
[342636027,1732013433919,-664.09,0.00024657,7]
[342636028,1732013433928,-500.0,0.00024657,7]
[342636029,1732013433938,-500.0,0.00024657,7]
[342636030,1732013433949,-500.0,0.00024657,7]
[342636031,1732013433959,-500.0,0.00024657,7]
[342636032,1732013433968,-194.03583197,0.00024657,7]
[342636033,1732013433977,-500.0,0.00024657,7]
[342636034,1732013433987,-500.0,0.00024657,7]
[342636035,1732013433996,-500.0,0.00024657,7]
[342636036,1732013434005,-500.0,0.00024657,7]
[342636037,1732013434015,-500.0,0.00024657,7]
[342636038,1732013434024,-500.0,0.00024657,7]
[342636039,1732013434033,-500.0,0.00024657,7]
[342636040,1732013434043,-500.0,0.00024657,7]
[342636041,1732013434053,-500.0,0.00024657,7]
[342636042,1732013434062,-380.0,0.00024658,2]
[342636043,1732013434071,-160.38556046,0.00024658,2]
[342636044,1732013434080,-500.0,0.00024999,7]
[342636045,1732013434090,-500.0,0.00024999,7]
[342636046,1732013434099,-5000.0,0.00025,15]
[342636047,1732013434108,-293.58,0.00025,2]
[342636048,1732013434117,-2679.34,0.00025,2]
[342636049,1732013434127,-300.0,0.00025,2]
[342636050,1732013434136,-300.0,0.00025,2]
[342636051,1732013434145,-272.2,0.00025,2]
[342636052,1732013434155,-300.0,0.000251,2]
[342636053,1732013434164,-500.0,0.00025312,7]
[342636054,1732013434174,-230.13257172,0.00025513,2]
[342636055,1732013434184,-157.0,0.00025539,2]
[342636056,1732013434195,-5000.0,0.00026,16]
[342636057,1732013434204,-500.0,0.00026027,4]
[342636058,1732013434214,-300.0,0.000261,2]
[342636059,1732013434224,-158.88899331,0.00026137,120]
[342636060,1732013434234,-506.96,0.00026224,7]
[342636061,1732013434243,-664.09,0.00026224,7]
[342636062,1732013434253,-854.499703,0.00026225,15]
[342636063,1732013434262,-230.13257172,0.00026437,2]
[342636064,1732013434275,-159.133825,0.00026788,2]
[342636065,1732013434285,-400.0,0.00026921,2]
[342636066,1732013434294,-500.0,0.00026956,7]
[342636067,1732013434304,-5000.0,0.00027,17]
[342636068,1732013434314,-300.0,0.000271,2]
[342636069,1732013434324,-1114.55,0.00027181,2]
[342636070,1732013434333,-230.13257172,0.00027361,2]
[342636071,1732013434343,-23335.88,0.00027377,10]
[342636072,1732013434353,-28003.06,0.00027387,10]
[342636073,1732013434362,-500.0,0.00027397,5]
[342636074,1732013434371,-5000.0,0.00028,18]
[342636075,1732013434381,-287.15,0.00028,2]
[342636076,1732013434390,-1000.0,0.00028,29]
[342636077,1732013434400,-300.0,0.000281,2]
[342636078,1732013434409,-1399.63332744,0.00028285,2]
[342636079,1732013434419,-230.13257172,0.00028285,2]
[342636080,1732013434429,-467.65999978,0.00028285,2]
[342636081,1732013434439,-5000.0,0.000283,19]
[342636082,1732013434449,-199.37,0.00028375,3]
[342636083,1732013434458,-51.07837393,0.00028384,7]
[342636084,1732013436105,-901.59592831,0.00018,2]
[342636147,1732013438743,-6114.02907169,0.00018,2]
[342636150,1732013438753,-782.06,0.00026225,15]
[342636153,1732013438764,-2285.57367146,0.00027367,10]
[342636300,1732013440380,-400.0,0.0001782,2]
[342636302,1732013440391,-238.36546201,0.00023099,2]
[342636308,1732013440433,-411.02053799,0.00023099,2]
[342636310,1732013440444,-753.95,0.00026225,15]
[342636312,1732013440454,-7066.96655494,0.00027367,10]
[342636620,1732013443545,-10094.0297736,0.00027367,10]
[342636621,1732013443554,-151.0,0.00027367,2]
[342636623,1732013443564,-453.97046059,0.00028384,7]
[342636625,1732013443573,-151.0,0.00028385,7]
[342636627,1732013443583,-506.96,0.00028385,7]
[342636629,1732013443592,-506.96,0.00028385,7]
[342636631,1732013443602,-506.96,0.00028385,7]
[342636633,1732013443611,-506.96,0.00028385,7]
[342636635,1732013443621,-506.96,0.00028385,7]
[342636638,1732013443631,-506.96,0.00028385,7]
[342636639,1732013443640,-506.96,0.00028385,7]
[342636642,1732013443650,-173.02105993,0.00028385,7]
[342636958,1732013748572,169.70872054,0.00014,5]
[342636960,1732014070729,1000.0,0.00026,120]
[342636966,1732014435176,-201.15117722,0.00013973,2]
[342636967,1732014437124,-198.84882278,0.00013973,2]
[342636968,1732014437148,-66.35850407,0.000179,2]
[342636970,1732014452127,-201.74247614,0.000179,2]
[342636971,1732014452149,-150.0,0.00017974,2]
[342636972,1732014452172,-18.22806756,0.00017974,2]
[342637602,1732014638947,-163.69093244,0.00017974,2]
[342637604,1732014638956,-7015.625,0.00018,2]
[342637606,1732014638966,-400.0,0.00020447,2]
[342637608,1732014638976,-151.12248987,0.00020527,2]
[342637610,1732014638987,-507.51913675,0.00021992,8]
[342637612,1732014638996,-501.04011297,0.00021999,8]
[342637614,1732014639005,-152.0,0.00022,2]
[342637616,1732014639015,-287.844,0.00022453,2]
[342637618,1732014639024,-166.241473,0.00022975,2]
[342637620,1732014639033,-300.0,0.0002299,2]
[342637622,1732014639043,-2156.9421594,0.00022991,2]
[342637624,1732014639052,-152.0,0.00023014,2]
[342637626,1732014639062,-165.021,0.00023278,3]
[342637628,1732014639071,-1777.746189,0.00023921,2]
[342637630,1732014639081,-1777.746189,0.00024606,2]
[342637632,1732014639090,-380.0,0.00024658,2]
[342637634,1732014639100,-500.0,0.00024999,7]
[342637636,1732014639110,-500.0,0.00024999,7]
[342637638,1732014639119,-2411.4,0.00025,2]
[342637640,1732014639128,-197.29080377,0.00025,2]
[342637927,1732014643628,-102.70919623,0.00025,2]
[342637928,1732014643638,-300.0,0.00025,2]
[342637929,1732014643647,-272.2,0.00025,2]
[342637930,1732014643656,-300.0,0.000251,2]
[342637931,1732014643666,-1777.746189,0.00025291,2]
[342637932,1732014643675,-500.0,0.00025312,7]
[342637933,1732014643684,-500.0,0.00025563,7]
[342637934,1732014643694,-500.0,0.00025563,7]
[342637935,1732014643704,-500.0,0.00025563,7]
[342637936,1732014643714,-500.0,0.00025563,7]
[342637937,1732014643723,-500.0,0.00025563,7]
[342637938,1732014643733,-500.0,0.00025563,7]
[342637939,1732014643743,-500.0,0.00025563,7]
[342637940,1732014643752,-500.0,0.00025563,7]
[342637941,1732014643761,-593.48,0.00025563,7]
[342637942,1732014643771,-500.0,0.00025563,7]
[342637943,1732014643781,-500.0,0.00025563,7]
[342637944,1732014643791,-500.0,0.00025563,7]
[342637945,1732014643801,-737.81461477,0.00026,2]
[342637946,1732014643818,-479.74138523,0.00026,2]
[342637947,1732014643827,-300.0,0.000261,2]
[342637948,1732014643836,-230.13257175,0.00026171,2]
[342637949,1732014643846,-754.0,0.00026271,15]
[342637950,1732014643855,-400.0,0.00026921,2]
[342637951,1732014643865,-150.0,0.00026926,2]
[342637952,1732014643874,-500.0,0.00026956,7]
[342637953,1732014643883,-300.0,0.000271,2]
[342637954,1732014643893,-150.0,0.00027198,2]
[342637955,1732014643902,-150.0,0.00027458,2]
[342637956,1732014643912,-175.15980892,0.00027828,2]
[342637957,1732014643922,-300.0,0.000281,2]
[342637958,1732014643932,-330.0,0.00028286,2]
[342637959,1732014643941,-151.57548534,0.00028331,2]
[342637960,1732014643950,-500.0,0.00028374,7]
[342637961,1732014643960,-500.0,0.00028374,7]
[342637962,1732014643970,-500.0,0.00028374,7]
[342637963,1732014643979,-500.0,0.00028374,7]
[342637964,1732014643990,-500.0,0.00028374,7]
[342637965,1732014644000,-500.0,0.00028374,7]
[342637966,1732014644009,-500.0,0.00028374,7]
[342637967,1732014644018,-415.48480514,0.00028377,2]
[342637968,1732014644028,-7815.14,0.00028377,10]
[342637969,1732014644037,-14474.76594374,0.00028377,10]
[342637974,1732014646734,-7015.625,0.00018,2]
[342637975,1732014646745,-160.0,0.00022,2]
[342637976,1732014646755,-691.1665,0.00026271,15]
[342637977,1732014646765,-428.18405626,0.00028377,10]
[342637978,1732014646775,-10058.82444374,0.00028377,10]
[342637982,1732014808351,304.87,0.00028,120]
[342637984,1732014945549,-195.13,0.00028,120]
[342637987,1732015279257,206.12,0.00028413,120]
[342637988,1732015279280,185.63,0.00028413,120]
[342637990,1732015320247,500.0,0.00026,60]
[342637991,1732015329327,200.48,0.00022,30]
[342637993,1732015368617,154.84,0.00028392,120]
[342637994,1732015404241,500.0,0.00026,60]
[342637997,1732015645215,-188.17904417,0.00013973,2]
[342637998,1732015650104,-211.82095583,0.00013973,2]
[342637999,1732015650124,-871.06754881,0.00018,2]
[342638010,1732015746098,-300.0,0.00010899,2]
[342638011,1732015746123,-300.0,0.00010899,2]
[342638012,1732015746144,-61220.78881016,0.000109,2]
[342638013,1732015752520,-10976.6096286,0.000109,2]
[342638014,1732015758211,-147839.98228599,0.000109,2]
[342638015,1732015766138,-2808.68,0.000109,2]
[342638017,1732015766167,-209.21085678,0.000109,2]
[342638046,1732015832016,-577.49417661,0.00017528,2]
[342638047,1732015832027,-56.04200542,0.00018,2]
[342638069,1732015838077,-6088.51544577,0.00018,2]
[342638071,1732015838087,-1757.966523,0.00019956,2]
[342638074,1732015838096,-4952.91385375,0.0001999,2]
[342638076,1732015838108,-5390.77933726,0.0001999,2]
[342638078,1732015838117,-500.0,0.00020376,2]
[342638080,1732015838126,-500.0,0.00020376,2]
[342638082,1732015838135,-282.21611746,0.00020376,2]
[342638084,1732015838144,-500.0,0.00020376,2]
[342638086,1732015838154,-438.48734591,0.00020376,2]
[342638088,1732015838163,-500.0,0.00020376,2]
[342638090,1732015838172,-500.0,0.00020376,2]